fUSD/lending_fUSD_20250620
["ID","MTS","AMOUNT","RATE_DAILY","PERIOD"]
[366769078,1750440679677,-490.0,0.00027583,4]
[366769079,1750440679687,-490.0,0.00027583,4]
[366769080,1750440679697,-490.0,0.00027583,4]
[366769081,1750440679707,-490.0,0.00027583,4]
[366769082,1750440679717,-490.0,0.00027583,4]
[366769083,1750440679730,-490.0,0.00027583,4]
[366769084,1750440679742,-490.0,0.00027583,4]
[366769085,1750440679753,-490.0,0.00027583,4]
[366769086,1750440679763,-705.73,0.00027583,4]
[366769087,1750440679773,-490.0,0.00027583,4]
[366769088,1750440679783,-490.0,0.00027583,4]
[366769089,1750440679794,-490.0,0.00027583,4]
[366769090,1750440679805,-490.0,0.00027583,4]
[366769091,1750440679815,-490.0,0.00027583,4]
[366769092,1750440679825,-490.0,0.00027583,4]
[366769093,1750440679834,-490.0,0.00027583,4]
[366769094,1750440679844,-490.0,0.00027583,4]
[366769095,1750440679854,-490.0,0.00027583,4]
[366769096,1750440679864,-490.0,0.00027583,4]
[366769097,1750440679874,-365.38694632,0.00027583,4]
[366769098,1750440679884,-490.0,0.00027583,4]
[366769099,1750440679893,-490.0,0.00027583,4]
[366769100,1750440679903,-490.0,0.00027583,4]
[366769101,1750440679913,-490.0,0.00027583,4]
[366769102,1750440679923,-490.0,0.00027583,4]
[366769103,1750440679933,-490.0,0.00027583,4]
[366769104,1750440679943,-490.0,0.00027583,4]
[366769105,1750440679953,-490.0,0.00027583,4]
[366769106,1750440679963,-490.0,0.00027583,4]
[366769107,1750440679973,-490.0,0.00027583,4]
[366769108,1750440679983,-490.0,0.00027583,4]
[366769109,1750440679993,-490.0,0.00027583,4]
[366769110,1750440680005,-490.0,0.00027583,4]
[366769111,1750440680015,-490.0,0.00027583,4]
[366769112,1750440680025,-490.0,0.00027583,4]
[366769113,1750440680034,-490.0,0.00027583,4]
[366769114,1750440680044,-619.38949765,0.00027583,4]
[366769115,1750440680054,-529.226967,0.00027583,4]
[366769116,1750440680064,-490.0,0.00027583,4]
[366769117,1750440680074,-490.0,0.00027583,4]
[366769118,1750440680083,-490.0,0.00027583,4]
[366769119,1750440680093,-490.0,0.00027583,4]
[366769120,1750440680103,-490.0,0.00027583,4]
[366769121,1750440680112,-490.0,0.00027583,4]
[366769122,1750440680122,-219.2145623,0.00027583,4]
[366769123,1750440680131,-490.0,0.00027583,4]
[366769124,1750440680141,-490.0,0.00027583,4]
[366769125,1750440680150,-490.0,0.00027583,4]
[366769126,1750440680160,-490.0,0.00027583,4]
[366769127,1750440680170,-490.0,0.00027583,4]
[366769128,1750440680180,-490.0,0.00027583,4]
[366769129,1750440680340,-490.0,0.00027583,4]
[366769130,1750440680351,-490.0,0.00027583,4]
[366769131,1750440680362,-490.0,0.00027583,4]
[366769132,1750440680372,-490.0,0.00027583,4]
[366769133,1750440680382,-490.0,0.00027583,4]
[366769134,1750440680392,-490.0,0.00027583,4]
[366769135,1750440680402,-490.0,0.00027583,4]
[366769136,1750440680412,-610.53760242,0.00027583,4]
[366769137,1750440680422,-490.0,0.00027583,4]
[366769138,1750440680432,-541.59123945,0.00027583,4]
[366769139,1750440680442,-301.47125045,0.00027583,4]
[366769140,1750440680452,-490.0,0.00027583,4]
[366769141,1750440680462,-678.01,0.00027583,4]
[366769142,1750440680473,-490.0,0.00027583,4]
[366769143,1750440680483,-490.0,0.00027583,4]
[366769144,1750440680492,-667.64,0.00027583,4]
[366769145,1750440680505,-490.0,0.00027583,4]
[366769146,1750440680516,-4654.55,0.00027583,4]
[366769147,1750440680526,-490.0,0.00027583,4]
[366769148,1750440680536,-1757.34,0.00027583,4]
[366769149,1750440680546,-490.0,0.00027583,4]
[366769150,1750440680556,-2408.79,0.00027583,4]
[366769151,1750440680566,-490.0,0.00027583,4]
[366769152,1750440680577,-490.0,0.00027583,4]
[366769153,1750440680589,-933.37,0.00027583,4]
[366769154,1750440680598,-490.0,0.00027583,4]
[366769155,1750440680611,-490.0,0.00027583,4]
[366769156,1750440680622,-490.0,0.00027583,4]
[366769157,1750440680634,-490.0,0.00027583,4]
[366769158,1750440680647,-490.0,0.00027583,4]
[366769159,1750440680659,-490.0,0.00027583,4]
[366769160,1750440680672,-491.36487967,0.00027583,4]
[366769161,1750440680686,-1279.77,0.00027583,4]
[366769162,1750440680698,-490.0,0.00027583,4]
[366769163,1750440680708,-490.0,0.00027583,4]
[366769164,1750440680718,-490.0,0.00027583,4]
[366769165,1750440680729,-490.0,0.00027583,4]
[366769166,1750440680740,-490.0,0.00027583,4]
[366769167,1750440680752,-583.91775733,0.00027583,4]
[366769168,1750440680763,-739.04,0.00027583,4]
[366769169,1750440680773,-490.0,0.00027583,4]
[366769170,1750440680782,-490.0,0.00027583,4]
[366769171,1750440680793,-499.97,0.00027583,4]
[366769172,1750440680803,-490.0,0.00027583,4]
[366769173,1750440680814,-497.15311338,0.00027583,4]
[366769174,1750440680824,-490.0,0.00027583,4]
[366769175,1750440680836,-495.04379158,0.00027583,4]
[366769176,1750440680845,-313.8,0.00027583,4]
[366769177,1750440680855,-490.0,0.00027583,4]
[366769178,1750440680866,-258.34936163,0.00027583,4]
[366769179,1750440680876,-490.0,0.00027583,4]
[366769180,1750440680886,-490.0,0.00027583,4]
[366769181,1750440680895,-490.0,0.00027583,4]
[366769182,1750440680905,-490.0,0.00027583,4]
[366769183,1750440680915,-490.0,0.00027583,4]
[366769184,1750440680925,-490.0,0.00027583,4]
[366769185,1750440680935,-505.56729536,0.00027583,4]
[366769186,1750440680944,-490.0,0.00027583,4]
[366769187,1750440680954,-543.59,0.00027583,4]
[366769188,1750440680964,-505.79735559,0.00027583,4]
[366769189,1750440680973,-490.0,0.00027583,4]
[366769190,1750440680983,-490.0,0.00027583,4]
[366769191,1750440680993,-490.0,0.00027583,4]
[366769192,1750440681007,-490.0,0.00027583,4]
[366769193,1750440681017,-490.0,0.00027583,4]
[366769194,1750440681026,-490.0,0.00027583,4]
[366769195,1750440681035,-490.0,0.00027583,4]
[366769196,1750440681045,-490.0,0.00027583,4]
[366769197,1750440681055,-490.0,0.00027583,4]
[366769198,1750440681066,-490.0,0.00027587,4]
[366769199,1750440681075,-490.0,0.00027587,4]
[366769200,1750440681086,-300.0,0.00027587,2]
[366769201,1750440681096,-490.0,0.00027588,4]
[366769202,1750440681106,-490.0,0.00027588,4]
[366769203,1750440681116,-490.0,0.00027588,4]
[366769204,1750440681126,-490.0,0.00027588,4]
[366769205,1750440681136,-490.0,0.00027588,4]
[366769206,1750440681146,-493.06141522,0.00027588,4]
[366769207,1750440681155,-490.0,0.00027588,4]
[366769208,1750440681165,-692.35,0.00027588,4]
[366769209,1750440681175,-607.61,0.00027588,4]
[366769210,1750440681184,-632.67779366,0.00027588,4]
[366769211,1750440681194,-639.62,0.00027588,4]
[366769212,1750440681203,-488.22986698,0.00027588,4]
[366769213,1750440681213,-490.0,0.00027588,4]
[366769214,1750440681223,-155.46703808,0.00027588,4]
[366769215,1750440681232,-490.0,0.00027588,4]
[366769216,1750440681242,-490.0,0.00027588,4]
[366769217,1750440681254,-490.0,0.00027588,4]
[366769218,1750440681265,-286.55675977,0.00027588,4]
[366769219,1750440681275,-490.0,0.00027588,4]
[366769220,1750440681285,-490.0,0.00027588,4]
[366769221,1750440681295,-490.0,0.00027588,4]
[366769222,1750440681304,-490.0,0.00027588,4]
[366769223,1750440681315,-490.0,0.00027588,4]
[366769224,1750440681325,-490.0,0.00027588,4]
[366769225,1750440681335,-490.0,0.00027588,4]
[366769226,1750440681344,-490.0,0.00027588,4]
[366769227,1750440681354,-490.0,0.00027588,4]
[366769228,1750440681364,-490.0,0.00027588,4]
[366769229,1750440681374,-501.49913744,0.00027588,4]
[366769230,1750440681384,-490.0,0.00027588,4]
[366769231,1750440681395,-490.0,0.00027588,4]
[366769232,1750440681406,-500.0,0.00027594,2]
[366769233,1750440681416,-28536.95,0.000276,2]
[366769234,1750440681426,-2907.66,0.000276,2]
[366769235,1750440681436,-264.15,0.00027606,2]
[366769236,1750440681445,-2000.0,0.00027607,60]
[366769237,1750440681456,-300.0,0.00027657,120]
[366769238,1750440681466,-300.0,0.00027657,120]
[366769239,1750440681476,-4242.89272737,0.00027663,2]
[366769240,1750440681486,-1692.80737687,0.00027693,17]
[366769241,1750440681496,-500.0,0.000277,30]
[366769242,1750440681508,-500.0,0.000277,30]
[366769243,1750440681518,-500.0,0.000277,30]
[366769244,1750440681527,-500.0,0.000277,30]
[366769245,1750440681537,-501.17741119,0.000277,30]
[366769246,1750440681547,-500.0,0.000277,30]
[366769247,1750440681557,-500.0,0.000277,30]
[366769248,1750440681566,-337.57394271,0.000277,30]
[366769249,1750440681576,-519.5929367,0.000277,30]
[366769250,1750440681585,-500.0,0.000277,30]
[366769251,1750440681596,-500.0,0.000277,30]
[366769252,1750440681606,-248.02631311,0.000277,30]
[366769253,1750440681616,-161.88941425,0.000277,30]
[366769254,1750440681627,-243.71673492,0.00027705,2]
[366769255,1750440681637,-168.0,0.00027745,2]
[366769256,1750440681647,-4181.38722174,0.0002775,2]
[366769257,1750440681657,-523.35078961,0.00027751,2]
[366769258,1750440681667,-159.17003042,0.00027756,2]
[366769259,1750440681676,-771.93691548,0.00027756,2]
[366769260,1750440681686,-168.0,0.00027792,2]
[366769261,1750440681696,-490.0,0.00027849,4]
[366769262,1750440681706,-490.0,0.00027849,4]
[366769263,1750440681715,-490.0,0.00027849,4]
[366769264,1750440681725,-490.0,0.00027849,4]
[366769265,1750440681738,-501.65,0.00027849,4]
[366769266,1750440681747,-490.0,0.00027849,4]
[366769267,1750440681758,-490.0,0.00027849,4]
[366769268,1750440681769,-830.23,0.00027849,4]
[366769269,1750440681779,-490.0,0.00027849,4]
[366769270,1750440681789,-665.05,0.00027849,4]
[366769271,1750440681804,-736.8,0.00027849,4]
[366769272,1750440681815,-490.0,0.00027849,4]
[366769273,1750440681826,-490.0,0.00027849,4]
[366769274,1750440681836,-490.0,0.00027849,4]
[366769275,1750440681846,-490.0,0.00027849,4]
[366769276,1750440681855,-490.0,0.00027849,4]
[366769277,1750440681865,-2220.12,0.00027849,4]
[366769278,1750440681874,-235.82012983,0.00027849,4]
[366769279,1750440681884,-713.54,0.00027849,4]
[366769280,1750440681893,-1265.1,0.00027849,4]
[366769281,1750440681906,-535.39,0.00027849,4]
[366769282,1750440681916,-793.31,0.00027849,4]
[366769283,1750440681927,-1348.24,0.00027849,4]
[366769284,1750440681937,-666.61,0.00027849,4]
[366769285,1750440681946,-490.0,0.00027849,4]
[366769286,1750440681956,-490.0,0.00027849,4]
[366769287,1750440681966,-490.0,0.00027849,4]
[366769288,1750440681975,-490.0,0.00027849,4]
[366769289,1750440681986,-490.0,0.00027849,4]
[366769290,1750440681996,-260.01327686,0.00027849,4]
[366769291,1750440682008,-150.0,0.00027849,2]
[366769292,1750440682018,-1177.57,0.00027849,4]
[366769293,1750440682027,-490.0,0.00027849,4]
[366769294,1750440682037,-490.0,0.00027849,4]
[366769295,1750440682047,-490.0,0.00027849,4]
[366769296,1750440682057,-771.36,0.00027849,4]
[366769297,1750440682066,-12985.333627,0.00027849,4]
[366769298,1750440682076,-2057.42,0.00027849,4]
[366769299,1750440682086,-490.0,0.00027849,4]
[366769300,1750440682095,-490.0,0.00027849,4]
[366769301,1750440682105,-320.28041984,0.00027849,2]
[366769302,1750440682114,-156.527436,0.00027849,4]
[366769303,1750440682124,-558.83,0.00027849,4]
[366769304,1750440682133,-490.0,0.0002785,4]
[366769305,1750440682143,-490.0,0.0002785,4]
[366769306,1750440682152,-490.0,0.0002785,4]
[366769307,1750440682162,-490.0,0.0002785,4]
[366769308,1750440682172,-490.0,0.0002785,4]
[366769309,1750440682182,-490.0,0.0002785,4]
[366769310,1750440682192,-716.45,0.0002785,4]
[366769311,1750440682202,-490.0,0.0002785,4]
[366769312,1750440682212,-490.0,0.0002785,4]
[366769313,1750440682221,-490.0,0.0002785,4]
[366769314,1750440682231,-520.24,0.0002785,4]
[366769315,1750440682241,-754.42,0.0002785,4]
[366769316,1750440682253,-490.0,0.0002785,4]
[366769317,1750440682263,-602.12,0.0002785,4]
[366769318,1750440682272,-490.0,0.0002785,4]
[366769319,1750440682282,-371.50733885,0.0002785,4]
[366769320,1750440682291,-490.0,0.0002785,4]
[366769321,1750440682301,-490.0,0.0002785,4]
[366769322,1750440682311,-905.83,0.0002785,4]
[366769323,1750440682320,-490.0,0.0002785,4]
[366769324,1750440682329,-490.0,0.0002785,4]
[366769325,1750440682339,-490.0,0.0002785,4]
[366769326,1750440682349,-492.17,0.0002785,4]
[366769327,1750440682359,-1393.17,0.0002785,4]
[366769328,1750440682369,-490.0,0.0002785,4]
[366769329,1750440682378,-490.0,0.0002785,4]
[366769330,1750440682388,-584.86,0.0002785,4]
[366769331,1750440682397,-490.0,0.0002785,4]
[366769332,1750440682407,-490.0,0.0002785,4]
[366769333,1750440682417,-334.30246383,0.0002785,4]
[366769334,1750440682427,-490.0,0.0002785,4]
[366769335,1750440682437,-509.4,0.0002785,4]
[366769336,1750440682446,-721.05,0.0002785,4]
[366769337,1750440682456,-834.17,0.0002785,4]
[366769338,1750440682465,-490.0,0.0002785,4]
[366769339,1750440682475,-490.0,0.0002785,4]
[366769340,1750440682654,-490.0,0.0002785,4]
[366769341,1750440682667,-490.0,0.0002785,4]
[366769342,1750440682679,-554.92,0.0002785,4]
[366769343,1750440682691,-490.0,0.0002785,4]
[366769344,1750440682705,-490.0,0.0002785,4]
[366769345,1750440682717,-490.0,0.0002785,4]
[366769346,1750440682731,-305.48,0.0002785,4]
[366769347,1750440682741,-490.0,0.0002785,4]
[366769348,1750440682753,-490.0,0.0002785,4]
[366769349,1750440682763,-490.0,0.0002785,4]
[366769350,1750440682774,-490.0,0.0002785,4]
[366769351,1750440682784,-490.0,0.0002785,4]
[366769352,1750440682794,-490.0,0.0002785,4]
[366769353,1750440682805,-490.0,0.0002785,4]
[366769354,1750440682815,-555.61,0.0002785,4]
[366769355,1750440682825,-490.0,0.0002785,4]
[366769356,1750440682835,-490.0,0.0002785,4]
[366769357,1750440682845,-490.0,0.0002785,4]
[366769358,1750440682854,-490.0,0.0002785,4]
[366769359,1750440682864,-541.25,0.0002785,4]
[366769360,1750440682874,-490.0,0.0002785,4]
[366769361,1750440682884,-490.0,0.0002785,4]
[366769362,1750440682895,-490.0,0.0002785,4]
[366769363,1750440682904,-1906.665071,0.0002785,4]
[366769364,1750440682914,-527.51,0.0002785,4]
[366769365,1750440682924,-764.08,0.0002785,4]
[366769366,1750440682935,-11113.072639,0.0002785,4]
[366769367,1750440682945,-490.0,0.0002785,4]
[366769368,1750440682954,-490.0,0.0002785,4]
[366769369,1750440682964,-570.69,0.0002785,4]
[366769370,1750440682974,-490.0,0.0002785,4]
[366769371,1750440682984,-490.0,0.0002785,4]
[366769372,1750440682995,-890.98,0.0002785,4]
[366769373,1750440683007,-490.0,0.0002785,4]
[366769374,1750440683018,-546.75,0.0002785,4]
[366769375,1750440683028,-1938.15,0.0002785,4]
[366769376,1750440683039,-490.0,0.0002785,4]
[366769377,1750440683048,-1286.16,0.0002785,4]
[366769378,1750440683058,-490.0,0.0002785,4]
[366769379,1750440683069,-490.0,0.0002785,4]
[366769380,1750440683079,-1042.0,0.0002785,4]
[366769381,1750440683090,-490.0,0.0002785,4]
[366769382,1750440683100,-791.65,0.0002785,4]
[366769383,1750440683110,-566.26,0.0002785,4]
[366769384,1750440683120,-490.0,0.0002785,4]
[366769385,1750440683130,-624.61745218,0.0002785,4]
[366769386,1750440683140,-823.76,0.0002785,4]
[366769387,1750440683150,-490.0,0.0002785,4]
[366769388,1750440683160,-653.43,0.0002785,4]
[366769389,1750440683169,-490.0,0.0002785,4]
[366769390,1750440683179,-797.01,0.0002785,4]
[366769391,1750440683189,-705.01,0.0002785,4]
[366769392,1750440683199,-493.89,0.0002785,4]
[366769393,1750440683210,-499.27,0.0002785,4]
[366769394,1750440683221,-928.6,0.0002785,4]
[366769395,1750440683231,-490.0,0.0002785,4]
[366769396,1750440683242,-1752.63,0.0002785,4]
[366769397,1750440683254,-490.0,0.0002785,4]
[366769398,1750440683265,-490.0,0.0002785,4]
[366769399,1750440683276,-265.11391672,0.0002785,4]
[366769400,1750440683286,-490.0,0.0002785,4]
[366769401,1750440683296,-669.55,0.0002785,4]
[366769402,1750440683307,-490.0,0.0002785,4]
[366769403,1750440683317,-490.0,0.0002785,4]
[366769404,1750440683327,-490.0,0.0002785,4]
[366769405,1750440683337,-278.54979618,0.0002785,4]
[366769406,1750440683347,-614.6,0.0002785,4]
[366769407,1750440683357,-513.28,0.0002785,4]
[366769408,1750440683366,-1221.53,0.0002785,4]
[366769409,1750440683377,-1000.0,0.0002785,2]
[366769410,1750440683388,-182.81545834,0.00027851,4]
[366769411,1750440683398,-249.52,0.00027851,4]
[366769412,1750440683409,-490.0,0.00027851,4]
[366769413,1750440683419,-490.0,0.00027851,4]
[366769414,1750440683429,-583.9,0.00027851,4]
[366769415,1750440683439,-490.0,0.00027851,4]
[366769416,1750440683450,-163.23050316,0.00027851,4]
[366769417,1750440683460,-463.01374915,0.00027851,4]
[366769418,1750440683470,-490.0,0.00027851,4]
[366769419,1750440683479,-647.28,0.00027851,4]
[366769420,1750440683489,-516.8,0.00027851,4]
[366769421,1750440683498,-667.67,0.00027851,4]
[366769422,1750440683511,-490.0,0.00027851,4]
[366769423,1750440683521,-490.0,0.00027851,4]
[366769424,1750440683531,-490.0,0.00027851,4]
[366769425,1750440683541,-490.0,0.00027851,4]
[366769426,1750440683550,-504.97,0.00027851,4]
[366769427,1750440683560,-490.0,0.00027851,4]
[366769428,1750440683570,-490.0,0.00027851,4]
[366769429,1750440683579,-490.0,0.00027851,4]
[366769430,1750440683589,-490.0,0.00027851,4]
[366769431,1750440683599,-490.0,0.00027851,4]
[366769432,1750440683608,-490.0,0.00027851,4]
[366769433,1750440683618,-275.85155909,0.00027851,4]
[366769434,1750440683629,-514.51,0.00027851,4]
[366769435,1750440683638,-490.0,0.00027851,4]
[366769436,1750440683649,-588.12875945,0.00027851,4]
[366769437,1750440683659,-490.0,0.00027851,4]
[366769438,1750440683669,-490.0,0.00027851,4]
[366769439,1750440683679,-490.0,0.00027851,4]
[366769440,1750440683689,-603.69,0.00027851,4]
[366769441,1750440683698,-490.0,0.00027851,4]
[366769442,1750440683709,-490.0,0.00027851,4]
[366769443,1750440683718,-490.0,0.00027851,4]
[366769444,1750440683728,-916.28,0.00027851,4]
[366769445,1750440683741,-422.91267198,0.00027851,4]
[366769446,1750440683751,-340.23997938,0.00027851,4]
[366769447,1750440683762,-490.0,0.00027851,4]
[366769448,1750440683772,-490.0,0.00027851,4]
[366769449,1750440683782,-578.52,0.00027851,4]
[366769450,1750440683792,-490.0,0.00027851,4]
[366769451,1750440683802,-793.1,0.00027851,4]
[366769452,1750440683813,-490.0,0.00027851,4]
[366769453,1750440683823,-490.0,0.00027851,4]
[366769454,1750440683832,-490.0,0.00027851,4]
[366769455,1750440683842,-490.0,0.00027851,4]
[366769456,1750440683852,-490.0,0.00027851,4]
[366769457,1750440683862,-490.0,0.00027851,4]
[366769458,1750440683872,-490.0,0.00027851,4]
[366769459,1750440683882,-490.0,0.00027851,4]
[366769460,1750440683891,-490.0,0.00027851,4]
[366769461,1750440683900,-490.0,0.00027851,4]
[366769462,1750440683910,-490.0,0.00027851,4]
[366769463,1750440683920,-727.94,0.00027851,4]
[366769464,1750440683929,-490.0,0.00027851,4]
[366769465,1750440683939,-490.0,0.00027851,4]
[366769466,1750440683948,-490.0,0.00027851,4]
[366769467,1750440683958,-490.0,0.00027851,4]
[366769468,1750440683967,-490.0,0.00027851,4]
[366769469,1750440683977,-490.0,0.00027851,4]
[366769470,1750440683987,-194.92872304,0.00027851,4]
[366769471,1750440683996,-490.0,0.00027851,4]
[366769472,1750440684008,-490.0,0.00027851,4]
[366769473,1750440684017,-490.0,0.00027851,4]
[366769474,1750440684027,-490.0,0.00027851,4]
[366769475,1750440684036,-490.0,0.00027851,4]
[366769476,1750440684046,-591.47,0.00027851,4]
[366769477,1750440684056,-1424.33,0.00027851,4]
[366769478,1750440684065,-1144.78,0.00027851,4]
[366769479,1750440684075,-491.74,0.00027851,4]
[366769480,1750440684085,-490.0,0.00027851,4]
[366769481,1750440684094,-1076.06,0.00027851,4]
[366769482,1750440684104,-509.95,0.00027851,4]
[366769483,1750440684114,-490.0,0.00027851,4]
[366769484,1750440684123,-490.0,0.00027851,4]
[366769485,1750440684133,-1366.43,0.00027851,4]
[366769486,1750440684143,-527.56,0.00027851,4]
[366769487,1750440684154,-490.0,0.00027851,4]
[366769488,1750440684163,-1816.18,0.00027851,4]
[366769489,1750440684173,-551.8,0.00027851,4]
[366769490,1750440684183,-682.44,0.00027851,4]
[366769491,1750440684192,-453.64663869,0.00027851,4]
[366769492,1750440684202,-490.0,0.00027851,4]
[366769493,1750440684212,-490.0,0.00027851,4]
[366769494,1750440684222,-490.0,0.00027851,4]
[366769495,1750440684231,-490.0,0.00027851,4]
[366769496,1750440684241,-574.86,0.00027851,4]
[366769497,1750440684251,-10103.26,0.00027851,4]
[366769498,1750440684260,-490.0,0.00027851,4]
[366769499,1750440684270,-490.0,0.00027851,4]
[366769500,1750440684280,-634.64,0.00027851,4]
[366769501,1750440684290,-3814.59,0.00027851,2]
[366769502,1750440684300,-1940.17,0.00027851,4]
[366769503,1750440684310,-490.0,0.00027851,4]
[366769504,1750440684321,-710.04,0.00027851,4]
[366769505,1750440684331,-682.88,0.00027851,4]
[366769506,1750440684341,-490.0,0.00027851,4]
[366769507,1750440684351,-2290.89,0.00027851,4]
[366769508,1750440684361,-490.0,0.00027851,4]
[366769509,1750440684371,-490.0,0.00027851,4]
[366769510,1750440684381,-2759.01,0.00027851,4]
[366769511,1750440684391,-3647.07,0.00027851,4]
[366769512,1750440684401,-651.97,0.00027851,4]
[366769513,1750440684411,-490.0,0.00027851,4]
[366769514,1750440684421,-582.01,0.00027851,4]
[366769515,1750440684431,-1217.61,0.00027851,4]
[366769516,1750440684441,-847.56,0.00027851,4]
[366769517,1750440684451,-490.0,0.00027851,4]
[366769518,1750440684461,-1886.27,0.00027851,4]
[366769519,1750440684470,-490.0,0.00027851,4]
[366769520,1750440684480,-1594.08,0.00027851,4]
[366769521,1750440684490,-490.0,0.00027851,4]
[366769522,1750440684500,-490.0,0.00027851,4]
[366769523,1750440684512,-1903.29,0.00027851,4]
[366769524,1750440684522,-665.17,0.00027851,4]
[366769525,1750440684532,-638.76,0.00027851,4]
[366769526,1750440684542,-538.1,0.00027851,4]
[366769527,1750440684552,-1000.0,0.00027851,4]
[366769528,1750440684563,-701.54,0.00027851,4]
[366769529,1750440684573,-632.98,0.00027851,4]
[366769530,1750440684584,-490.0,0.00027851,4]
[366769531,1750440684594,-1799.61,0.00027851,4]
[366769532,1750440684603,-543.75,0.00027851,4]
[366769533,1750440684614,-490.0,0.00027851,4]
[366769534,1750440684625,-490.0,0.00027851,4]
[366769535,1750440684812,-751.18,0.00027851,4]
[366769536,1750440684823,-490.0,0.00027851,4]
[366769537,1750440684833,-490.0,0.00027851,4]
[366769538,1750440684842,-1965.09,0.00027851,4]
[366769539,1750440684852,-490.0,0.00027851,4]
[366769540,1750440684862,-490.0,0.00027851,4]
[366769541,1750440684873,-490.0,0.00027851,4]
[366769542,1750440684882,-835.07,0.00027851,4]
[366769543,1750440684892,-490.0,0.00027851,4]
[366769544,1750440684903,-506.38,0.00027851,4]
[366769545,1750440684913,-535.19,0.00027851,4]
[366769546,1750440684923,-1865.75,0.00027851,4]
[366769547,1750440684933,-490.0,0.00027851,4]
[366769548,1750440684943,-490.0,0.00027851,4]
[366769549,1750440684953,-490.0,0.00027851,4]
[366769550,1750440684963,-2004.72,0.00027851,4]
[366769551,1750440684973,-490.0,0.00027851,4]
[366769552,1750440684983,-593.92,0.00027851,4]
[366769553,1750440684994,-764.06,0.00027851,4]
[366769554,1750440685003,-843.4,0.00027851,4]
[366769555,1750440685013,-490.0,0.00027851,4]
[366769556,1750440685023,-490.0,0.00027856,4]
[366769557,1750440685034,-490.0,0.00027856,4]
[366769558,1750440685043,-592.98929165,0.00027856,4]
[366769559,1750440685053,-250.0,0.00027856,4]
[366769560,1750440685062,-490.0,0.00027856,4]
[366769561,1750440685072,-490.0,0.00027856,4]
[366769562,1750440685082,-490.0,0.00027856,4]
[366769563,1750440685092,-496.62,0.00027856,4]
[366769564,1750440685101,-490.0,0.00027856,4]
[366769565,1750440685111,-490.0,0.00027856,4]
[366769566,1750440685121,-490.0,0.00027856,4]
[366769567,1750440685131,-305.93192851,0.00027856,4]
[366769568,1750440685140,-490.0,0.00027856,4]
[366769569,1750440685150,-592.71,0.00027856,4]
[366769570,1750440685160,-261.2937028,0.00027856,4]
[366769571,1750440685170,-490.0,0.00027856,4]
[366769572,1750440685179,-490.0,0.00027856,4]
[366769573,1750440685189,-490.0,0.00027856,4]
[366769574,1750440685199,-162.64048182,0.00027856,4]
[366769575,1750440685209,-490.0,0.00027856,4]
[366769576,1750440685219,-490.0,0.00027856,4]
[366769577,1750440685228,-490.0,0.00027856,4]